lending/lending_fUSD_20241007
["ID","MTS","AMOUNT","RATE_DAILY","PERIOD"]
[339983797,1728269439608,-1000.0,0.00032396,2]
[339983798,1728269439617,-1000.0,0.00032396,2]
[339983799,1728269439628,-1000.0,0.00032396,2]
[339983800,1728269439637,-1000.0,0.00032396,2]
[339983801,1728269439646,-1000.0,0.00032396,2]
[339983802,1728269439655,-1000.0,0.00032396,2]
[339983803,1728269439665,-1000.0,0.00032396,2]
[339983804,1728269439674,-1000.0,0.00032396,2]
[339983805,1728269439683,-1000.0,0.00032396,2]
[339983806,1728269439693,-1000.0,0.00032396,2]
[339983807,1728269439702,-1000.0,0.00032396,2]
[339983808,1728269439711,-1000.0,0.00032396,2]
[339983809,1728269439721,-1000.0,0.00032396,2]
[339983810,1728269439730,-1000.0,0.00032396,2]
[339983811,1728269439739,-1000.0,0.00032396,2]
[339983812,1728269439749,-1000.0,0.00032396,2]
[339983813,1728269439758,-1000.0,0.00032396,2]
[339983814,1728269439767,-711.1586189,0.00032396,2]
[339983815,1728269439777,-225.417029,0.00032396,7]
[339983816,1728269439786,-151.0,0.00032396,7]
[339983817,1728269439795,-151.0,0.00032396,7]
[339983818,1728269439805,-151.0,0.00032396,7]
[339983819,1728269439814,-151.0,0.00032396,7]
[339983820,1728269439825,-155.0,0.00032396,5]
[339983821,1728269439836,-28796.93857079,0.00032397,5]
[339983822,1728269440135,-213100.55262338,0.00032397,5]
[339983823,1728269440147,-4642.27245068,0.00032397,5]
[339983824,1728269440159,-911.15743398,0.00032397,5]
[339983825,1728269440170,-682.60523184,0.00032397,5]
[339983826,1728269440181,-1034.355,0.00032397,5]
[339983827,1728269440455,-52314.45260923,0.00032397,5]
[339983828,1728269440467,-7828.4085701,0.00032397,5]
[339983829,1728269440475,-1739.6423609,0.00032397,5]
[339983830,1728269440487,-711.3485025,0.00032397,5]
[339983831,1728269440498,-356.19588052,0.00032397,5]
[339983832,1728269440509,-761.96368686,0.00032397,5]
[339983833,1728269442385,-355.72425126,0.00032397,5]
[339983834,1728269442396,-1728.29208215,0.00032397,5]
[339983835,1728269442407,-540.15952284,0.00032397,5]
[339983836,1728269442607,-21656.56147187,0.00032397,5]
[339983838,1728269442957,-3265.01060924,0.00032397,5]
[339983840,1728269442969,-370.03474092,0.00032397,5]
[339983841,1728269442980,-311.7686698,0.00032397,5]
[339983842,1728269443142,-373.5132,0.00032397,5]
[339983843,1728269443153,-2285.82171714,0.00032397,5]
[339983844,1728269443164,-773.9542217,0.00032397,5]
[339983845,1728269443175,-684.93719709,0.00032397,5]
[339983846,1728269443186,-1819.10858964,0.00032397,5]
[339983847,1728269443197,-2467.1499995,0.00032397,5]
[339983848,1728269443208,-7440.45079688,0.00032397,5]
[339983849,1728269443218,-361.855006,0.00032397,5]
[339983850,1728269443229,-676.77303068,0.00032397,5]
[339983851,1728269443240,-7764.0017081,0.00032397,5]
[339983852,1728269443250,-1000.0,0.00032397,5]
[339983853,1728269443261,-6679.72932,0.00032397,5]
[339983854,1728269443272,-10992.66936184,0.00032397,5]
[339983855,1728269443283,-89923.23117469,0.00032397,5]
[339983856,1728269443293,-16660.22499645,0.00032397,5]
[339983857,1728269443305,-754.9399989,0.00032397,5]
[339983858,1728269443316,-165426.51001853,0.00032397,5]
[339983859,1728269443325,-694.93753913,0.00032397,2]
[339983860,1728269443334,-219.40973768,0.00032397,5]
[339983861,1728269443343,-54037.05022904,0.00032404,2]
[339983862,1728269443352,-11626.808775,0.00032404,2]
[339983863,1728269443362,-151.0,0.00032404,7]
[339983864,1728269443371,-5222.2879274,0.00032404,2]
[339983865,1728269443379,-262.789987,0.00032404,7]
[339983866,1728269443393,-200.0,0.00032405,2]
[339983867,1728269443403,-250.0,0.00032406,2]
[339983868,1728269443412,-3528.67842579,0.00032406,2]
[339983869,1728269443423,-1267.53629767,0.00032406,2]
[339983870,1728269443434,-1240.6631406,0.00032406,2]
[339983871,1728269443544,-13102.56263663,0.00032406,2]
[339983872,1728269443555,-520.08474375,0.00032406,2]
[339983873,1728269443566,-305.67881732,0.00032406,2]
[339983874,1728269443577,-738.48,0.00032406,2]
[339983876,1728269443588,-489.18296135,0.00032406,2]
[339983877,1728269443598,-362.76485203,0.00032406,2]
[339983879,1728269443610,-484.56846424,0.00032406,2]
[339983881,1728269443621,-2558.2578458,0.00032406,2]
[339983884,1728269443632,-444.24779552,0.00032406,2]
[339983885,1728269443643,-8739.00278943,0.00032406,2]
[339983887,1728269443654,-479.355,0.00032406,2]
[339983888,1728269443665,-307.25684548,0.00032406,2]
[339983889,1728269443676,-1093.29067042,0.00032406,2]
[339983890,1728269443687,-1068.93575573,0.00032406,2]
[339983891,1728269443699,-455.24917089,0.00032406,2]
[339983892,1728269443709,-1668.02297108,0.00032406,2]
[339983893,1728269443720,-993.12736041,0.00032406,2]
[339983894,1728269443731,-577.53714352,0.00032406,2]
[339983895,1728269444258,-18.49730957,0.00032406,2]
[339983896,1728269444269,-536.39151588,0.00032406,2]
[339983897,1728269444280,-529.685291,0.00032406,2]
[339983898,1728269444291,-463.3999995,0.00032406,2]
[339983906,1728269446071,-508.87618882,0.00032348,2]
[339983907,1728269446083,-1189.02918722,0.00032348,2]
[339983908,1728269446093,-891.62318764,0.00032348,2]
[339983909,1728269446104,-866.86903772,0.00032348,2]
[339983910,1728269446113,-159.0,0.00032406,5]
[339983911,1728269446122,-243.65080032,0.00032406,2]
[339983912,1728269446133,-1224.9376738,0.00032406,2]
[339983913,1728269446144,-266.86720285,0.00032406,2]
[339983914,1728269446155,-907.5,0.00032406,2]
[339983915,1728269446166,-3614.48,0.00032406,2]
[339983916,1728269446177,-555.0,0.00032406,2]
[339983917,1728269446188,-1529.47956354,0.00032406,2]
[339983918,1728269446199,-581.02513369,0.00032406,2]
[339983919,1728269446209,-2822.4101918,0.00032406,2]
[339983920,1728269446247,-2316.44234535,0.00032406,2]
[339983921,1728269446258,-392.18531531,0.00032406,2]
[339983922,1728269446269,-797.50039743,0.00032406,2]
[339983923,1728269446279,-832.13,0.00032406,2]
[339983924,1728269446290,-1417.56443875,0.00032406,2]
[339983925,1728269446300,-919.79154158,0.00032406,2]
[339983926,1728269446311,-776.71636707,0.00032406,2]
[339983927,1728269446321,-1326.68,0.00032406,2]
[339983928,1728269446332,-360.08234564,0.00032406,2]
[339983929,1728269446342,-47993.18028847,0.00032406,2]
[339983930,1728269446353,-8200.69049466,0.00032406,2]
[339983931,1728269446364,-2026.77504163,0.00032406,2]
[339983932,1728269446374,-10401.00682633,0.00032406,2]
[339983933,1728269446386,-96151.00448447,0.00032406,2]
[339983934,1728269446398,-1546.58900404,0.00032406,2]
[339983935,1728269446426,-17614.77864084,0.00032406,2]
[339983937,1728269446437,-4417.52516995,0.00032406,2]
[339983938,1728269446448,-2735.70533876,0.00032406,2]
[339983939,1728269608509,250.0,0.00011,2]
[339983940,1728269609593,300.0,0.00013,2]
[339983941,1728269610670,350.0,0.00015,2]
[339983942,1728269814663,174.51,0.00010959,2]
[339983950,1728270632382,-400.0,0.00017,2]
[339983951,1728270632392,-202.49177323,0.00023661,2]
[339983952,1728270632403,-152.06,0.00024037,2]
[339983953,1728270632414,-1186.962612,0.00028129,2]
[339983954,1728270632423,-314.38,0.00028271,2]
[339983955,1728270632433,-451.02,0.00028371,2]
[339983956,1728270632443,-499.99,0.00029707,2]
[339983957,1728270632452,-300.0,0.00029857,2]
[339983958,1728270632461,-2606.59895313,0.00029858,2]
[339983959,1728270632474,-1226.69104687,0.00029858,2]
[339983960,1728270632484,-665.09072538,0.00029858,2]
[339983961,1728270632495,-561.75930824,0.00029858,2]
[339983962,1728270632506,-1907.0,0.00029858,2]
[339983963,1728270632593,-2145.62325038,0.00029858,2]
[339983966,1728270632605,-3212.036716,0.00029858,2]
[339983968,1728270632614,-2751.0,0.00029972,2]
[339983969,1728270632623,-2694.65555393,0.00029982,2]
[339983993,1728270638331,-502.07315815,0.00029982,2]
[339984004,1728270646645,-13538.64128792,0.00029982,2]
[339984005,1728270646654,-1992.57,0.00030036,2]
[339984006,1728270646663,-250.0,0.00030036,2]
[339984007,1728270646673,-418.23,0.0003004,2]
[339984008,1728270646682,-2372.58809701,0.00030063,2]
[339984009,1728270646691,-188.51,0.00030063,2]
[339984010,1728270646699,-155.14,0.00030088,2]
[339984011,1728270646708,-250.0,0.00030095,2]
[339984012,1728270646718,-250.0,0.00030105,2]
[339984013,1728270646727,-150.0,0.00030116,2]
[339984014,1728270646736,-243.5,0.00030154,2]
[339984015,1728270646745,-200.0,0.00030179,2]
[339984016,1728270646754,-200.0,0.00030188,2]
[339984018,1728270646763,-159.99,0.00030189,120]
[339984019,1728270646772,-479.23,0.00030391,30]
[339984020,1728270646781,-726.95,0.00030391,2]
[339984021,1728270646790,-265.44,0.00030489,120]
[339984022,1728270646800,-872.0,0.00030533,2]
[339984023,1728270646809,-451.02,0.00030635,2]
[339984024,1728270646818,-1011.32,0.000307,2]
[339984025,1728270646827,-249.03,0.00030932,120]
[339984026,1728270646837,-167.0,0.00031046,2]
[339984027,1728270646847,-781.0,0.00031101,2]
[339984028,1728270646856,-150.0,0.000312,2]
[339984029,1728270646865,-8561.21905217,0.00031575,2]
[339984030,1728270646874,-167.33,0.00031624,2]
[339984031,1728270646883,-2300.0,0.000317,11]
[339984032,1728270646892,-227.0,0.000317,2]
[339984033,1728270646901,-423.5,0.00031781,2]
[339984034,1728270646911,-423.5,0.00031781,2]
[339984035,1728270646920,-1000.0,0.000318,2]
[339984036,1728270646929,-4700.0,0.000318,11]
[339984037,1728270646938,-1416.38464409,0.000318,15]
[339984038,1728270646947,-2500.0,0.000318,2]
[339984039,1728270646956,-501.48813222,0.00031873,5]
[339984040,1728270646966,-247.93049023,0.00031873,2]
[339984041,1728270646975,-500.0,0.00031873,2]
[339984042,1728270646984,-500.0,0.00031899,2]
[339984043,1728270646993,-465.39490007,0.00031899,2]
[339984044,1728270647003,-156.0,0.000319,2]
[339984045,1728270647012,-245000.0,0.000319,2]
[339984046,1728270647020,-272.515,0.000319,2]
[339984047,1728270647029,-1674.59280272,0.000319,11]
[339984048,1728270647059,-80.94499636,0.000319,11]
[339984049,1728271414059,250.0,0.00011,2]
[339984050,1728271415143,300.0,0.00013,2]
[339984051,1728271507973,182935.71254618,0.00011,2]
[339984057,1728271678516,271114.27094783,0.00011,2]
[339984093,1728271832508,-438.97982347,0.000238,3]
[339984094,1728271832520,-562.02017653,0.000238,3]
[339984095,1728271832529,-405.91,0.00028701,2]
[339984096,1728271832538,-578.34476319,0.00028864,2]
[339984097,1728271832549,-794.55410488,0.00028864,2]
[339984098,1728271832560,-1290.11374695,0.00028864,2]
[339984099,1728271832569,-250.0,0.00030501,2]
[339984100,1728271832578,-250.0,0.00030578,2]
[339984101,1728271832588,-159.99,0.00030618,120]
[339984102,1728271832597,-155.14,0.00030778,2]
[339984103,1728271832606,-3700.0,0.000309,11]
[339984104,1728271832615,-363.47,0.00030907,2]
[339984105,1728271832625,-250.0,0.00030914,2]
[339984106,1728271832634,-405.91,0.00030965,2]
[339984107,1728271832643,-847.84826218,0.00031004,2]
[339984108,1728271832655,-10429.24584048,0.00031004,2]
[339984109,1728271832666,-470.59679604,0.00031004,2]
[339984110,1728271832677,-846.47,0.00031004,2]
[339984111,1728271832688,-350.2299999,0.00031004,2]
[339984112,1728271832699,-589.34061563,0.00031004,2]
[339984113,1728271832710,-3289.01599569,0.00031004,2]
[339984114,1728271832721,-327.10449135,0.00031004,2]
[339984119,1728271832852,-4122.53799873,0.00031004,2]
[339984120,1728271832861,-464.17,0.00031123,30]
[339984121,1728271832871,-1000.0,0.00031166,2]
[339984122,1728271832880,-1031.512223,0.000312,2]
[339984123,1728271832889,-356.62939594,0.0003137,2]
[339984124,1728271832898,-500.0,0.00031373,2]
[339984125,1728271832908,-600.65,0.00031379,2]
[339984126,1728271832917,-600.65,0.00031379,2]
[339984127,1728271832927,-600.65,0.00031379,2]
[339984128,1728271832937,-600.65,0.00031379,2]
[339984129,1728271832946,-600.65,0.00031379,2]
[339984130,1728271832956,-600.65,0.00031379,2]
[339984131,1728271832965,-600.65,0.00031379,2]
[339984132,1728271832974,-600.65,0.00031379,2]
[339984133,1728271832984,-600.65,0.00031379,2]
[339984134,1728271832995,-600.65,0.00031379,2]
[339984135,1728271833004,-195.7183364,0.00031379,2]
[339984136,1728271833013,-500.0,0.00031379,2]
[339984137,1728271833023,-156.0,0.0003138,2]
[339984138,1728271833033,-9172.6756277,0.0003138,2]
[339984139,1728271833045,-457.29170079,0.0003138,2]
[339984141,1728271833056,-1856.9894157,0.0003138,2]
[339984156,1728271838970,-1557.50117738,0.0003138,2]
[339984158,1728271838982,-1001.62640001,0.0003138,2]
[339984175,1728271840618,-274.87841588,0.0003138,2]
[339984189,1728271846433,-500.0,0.00031373,2]
[339984190,1728271846443,-148.78470398,0.0003138,2]
[339984191,1728271846454,-16521.18202934,0.0003138,2]
[339984192,1728271984702,163.54,0.00010959,2]
[339984193,1728272728903,151.44,0.00023,120]
[339984199,1728272985258,350.0,0.00015,2]
[339984211,1728273031397,-1051.45459987,0.0001726,2]
[339984213,1728273031406,-1029.77756922,0.000195,2]
[339984214,1728273031415,-5013.77,0.0002,2]
[339984215,1728273031429,-2400.0,0.00024875,2]
[339984217,1728273031443,-296.13369639,0.00025,120]
[339984218,1728273031459,-2411.86630361,0.00025,120]
[339984219,1728273031472,-363.0,0.000278,3]
[339984220,1728273031485,-365.31,0.00028151,2]
[339984221,1728273031497,-155.14,0.00029471,2]
[339984222,1728273031511,-181.73,0.00029688,2]
[339984223,1728273031524,-1511.57,0.00029976,5]
[339984224,1728273031537,-160.0,0.0003,2]
[339984225,1728273031551,-160.0,0.0003,4]
[339984226,1728273031565,-939.3672379,0.0003,31]
[339984227,1728273031576,-163.718368,0.0003,31]
[339984228,1728273031588,-250.0,0.00030074,2]
[339984229,1728273031600,-172.54544455,0.00030143,2]
[339984230,1728273031616,-77.45455545,0.00030143,2]
[339984231,1728273031628,-250.0,0.00030154,2]
[339984232,1728273031640,-309.60781534,0.00030415,2]
[339984233,1728273031653,-55.70218466,0.00030415,2]
[339984234,1728273031665,-440.96,0.00030451,30]
[339984235,1728273031677,-752.33,0.00030641,2]
[339984236,1728273031690,-409.08996616,0.00030645,2]
[339984237,1728273031705,-6141.60893384,0.00030645,2]
[339984238,1728273031718,-1000.0,0.00030769,2]
[339984239,1728273031731,-4000.0,0.000309,11]
[339984240,1728273031745,-1340.03018768,0.00031,2]
[339984241,1728273031755,-900.0,0.00031,32]
[339984242,1728273031765,-150.0,0.00031,2]
[339984243,1728273031776,-300.0,0.00031,30]
[339984244,1728273031788,-163.718368,0.00031,32]
[339984246,1728273031801,-784.77333035,0.0003127,2]
[339984248,1728273031814,-1253.955,0.0003128,2]
[339984250,1728273031824,-9360.48754572,0.0003128,2]
[339984253,1728273031844,-18451.21905428,0.0003128,2]
[339984255,1728273031857,-500.0,0.0003128,2]
[339984257,1728273031868,-1274.74617969,0.000313,15]
[339984259,1728273031878,-332.47432044,0.000313,2]
[339984261,1728273031890,-300.0,0.000313,30]
[339984264,1728273031901,-500.0,0.00031369,2]
[339984266,1728273031912,-230.0712189,0.00031369,2]
[339984268,1728273031923,-500.0,0.00031369,2]
[339984270,1728273031934,-500.0,0.00031369,2]
[339984272,1728273031945,-500.0,0.00031369,2]
[339984274,1728273031956,-475.08403023,0.00031369,2]
[339984277,1728273031968,-334851.770558,0.0003137,5]
[339984279,1728273031979,-58963.4583629,0.0003137,5]
[339984281,1728273031990,-348.00437381,0.0003137,2]
[339984283,1728273032001,-500.0,0.00031373,2]
[339984285,1728273032012,-5689.3826366,0.00031377,2]
[339984287,1728273032023,-181.98975269,0.00031379,2]
[339984289,1728273032034,-157.0,0.0003138,2]
[339984291,1728273032045,-305739.57140663,0.0003138,2]
[339984294,1728273032111,-473740.38499754,0.0003138,2]
[339984295,1728273032125,-4248.04854285,0.0003138,2]
[339984296,1728273032139,-2439.66088291,0.0003138,2]
[339984297,1728273032152,-4700.0,0.0003138,2]
[339984298,1728273032166,-55867.88712503,0.0003138,2]
[339984299,1728273032193,-9418.91411978,0.0003138,2]
[339984300,1728273032211,-3201.75970489,0.0003138,2]
[339984301,1728273032225,-893.65821459,0.0003138,2]
[339984302,1728273032238,-468.72740377,0.0003138,2]
[339984304,1728273032251,-10952.05438433,0.0003138,2]
[339984307,1728273032269,-128929.81858561,0.0003138,2]
[339984309,1728273032280,-2183.83179122,0.0003139,5]
[339984311,1728273032291,-1139.53640484,0.000314,3]
[339984313,1728273032303,-8000.0,0.000317,11]
[339984315,1728273032320,-2183.83179122,0.0003179,5]
[339984317,1728273032332,-12000.0,0.000318,11]
[339984320,1728273032343,-227.0,0.000318,2]
[339984322,1728273032354,-546.3,0.00031836,2]
[339984324,1728273032366,-534.16,0.00031836,2]
[339984326,1728273032378,-534.16,0.00031836,2]
[339984329,1728273032390,-534.16,0.00031836,2]
[339984331,1728273032400,-534.3,0.00031836,2]
[339984332,1728273032410,-2304.2650676,0.00031848,2]
[339984334,1728273032419,-25396.90228592,0.00031848,2]
[339984336,1728273032428,-338.58516401,0.00031848,2]
[339984338,1728273032438,-167.57,0.0003186,2]
[339984352,1728273032579,-2183.83179122,0.0003189,5]
[339984354,1728273032597,-250.0,0.00031899,2]
[339984356,1728273032609,-151.1920604,0.000319,15]
[339984358,1728273032618,-500.0,0.000319,2]
[339984360,1728273032627,-500.0,0.000319,2]
[339984361,1728273032636,-500.0,0.000319,2]
[339984363,1728273032645,-500.0,0.000319,2]
[339984365,1728273032654,-500.0,0.000319,2]
[339984367,1728273032663,-500.0,0.000319,2]
[339984369,1728273032672,-500.0,0.000319,2]
[339984371,1728273032682,-500.0,0.000319,2]
[339984372,1728273032691,-500.0,0.000319,2]
[339984374,1728273032701,-500.0,0.000319,2]
[339984376,1728273032709,-500.0,0.000319,2]
[339984378,1728273032719,-500.0,0.000319,2]
[339984380,1728273032728,-500.0,0.000319,2]
[339984382,1728273032737,-500.0,0.000319,2]
[339984384,1728273032746,-266.57835065,0.000319,2]
[339984386,1728273032758,-233.42164935,0.000319,2]
[339984387,1728273032767,-29.65479925,0.000319,2]
[339984388,1728273032778,-493.23382882,0.000319,2]
[339984389,1728273032787,-10484.48757818,0.000319,11]
[339984390,1728273032798,-767.87927622,0.000319,11]
[339984391,1728273037426,-918.203,0.0003128,2]
[339984393,1728273037436,-2320.7211502,0.000319,11]
[339984396,1728273037452,-2426.9119954,0.000319,11]
[339984397,1728273037462,-2183.83179122,0.00031901,5]
[339984398,1728273037471,-8735.32716488,0.00031904,5]
[339984399,1728273037483,-348.00437381,0.00031904,2]
[339984400,1728273037492,-7111.72829575,0.00031911,2]
[339984401,1728273037501,-10206.14161944,0.00031914,2]
[339984402,1728273037542,-864265.83312455,0.00031914,2]
[339984403,1728273037640,-1373.83926939,0.00031914,2]
[339984404,1728273037734,-6903.18681663,0.00031914,2]
[339984405,1728273037746,-291.91495919,0.00031914,2]
[339984406,1728273037834,-461.545,0.00031914,2]
[339984412,1728273039615,-400.07483383,0.00031914,2]
[339984413,1728273039626,-745.83403878,0.00031914,2]
[339984414,1728273039639,-5464.19112739,0.00031914,2]
[339984415,1728273042195,-2342.76993528,0.00030042,2]
[339984416,1728273042205,-1029.24924564,0.00031914,2]
[339984417,1728273042216,-9829.40836922,0.00031914,2]
[339984419,1728273042333,-20757.13295809,0.00031914,2]
[339984428,1728273042611,-315187.16864534,0.00031914,2]
[339984429,1728273042621,-151.100705,0.00031948,2]
[339984430,1728273042630,-333.6220748,0.00031973,2]
[339984431,1728273042640,-500.0,0.00031973,5]
[339984432,1728273042650,-500.0,0.0003198,2]
[339984433,1728273042659,-500.0,0.0003198,2]
[339984434,1728273042668,-500.0,0.0003198,2]
[339984435,1728273042678,-500.0,0.0003198,2]
[339984436,1728273042688,-500.0,0.0003198,2]
[339984437,1728273042697,-500.0,0.0003198,2]
[339984438,1728273042706,-500.0,0.0003198,2]
[339984439,1728273042715,-500.0,0.0003198,2]
[339984440,1728273042724,-500.0,0.0003198,2]
[339984441,1728273042733,-348.1,0.0003198,2]
[339984442,1728273042742,-4999.999999,0.00032,2]
[339984443,1728273042752,-61309.0,0.00032,2]
[339984444,1728273042761,-2000.0,0.00032,120]
[339984445,1728273042770,-2000.0,0.00032,120]
[339984446,1728273042779,-5000.0,0.00032,120]
[339984447,1728273042788,-900.0,0.00032,33]
[339984448,1728273042797,-151.100705,0.00032048,3]
[339984449,1728273042807,-151.100705,0.00032148,4]
[339984450,1728273042817,-151.0,0.00032155,7]
[339984451,1728273042826,-161.137031,0.00032155,7]
[339984452,1728273042835,-161.137031,0.00032155,7]
[339984454,1728273042844,-860.0,0.00032155,30]
[339984455,1728273042854,-5003.42656689,0.00032155,120]
[339984457,1728273042863,-155.62039157,0.00032155,120]
[339984459,1728273042872,-295.95831041,0.00032155,120]
[339984461,1728273042881,-194.0,0.00032155,30]
[339984463,1728273042890,-194.0,0.00032155,30]
[339984464,1728273042899,-158.0,0.00032155,30]
[339984466,1728273042908,-354.173,0.00032244,2]
[339984468,1728273042918,-244.01612474,0.00032248,7]
[339984470,1728273042927,-5053.02,0.000323,14]
[339984472,1728273042936,-1000.0,0.000323,2]
[339984474,1728273042945,-708.04909708,0.00032307,2]
[339984476,1728273042953,-407.99249424,0.00032307,2]
[339984477,1728273042963,-151.0,0.00032376,7]
[339984479,1728273042972,-151.0,0.00032376,7]
[339984481,1728273042981,-151.0,0.0003238,7]
[339984483,1728273042990,-209.003981,0.00032384,7]
[339984485,1728273042999,-212.860787,0.00032386,7]
[339984487,1728273043008,-151.0,0.0003239,7]
[339984489,1728273043017,-348.00437381,0.00032395,2]
[339984490,1728273043027,-151.0,0.00032396,7]
[339984492,1728273043036,-151.0,0.00032396,7]
[339984494,1728273043046,-160.63781,0.00032396,7]
[339984496,1728273043055,-152.0,0.00032396,30]
[339984498,1728273043065,-85379.80917664,0.000324,2]
[339984500,1728273043088,-1309.9999992,0.000324,2]
[339984502,1728273043100,-5693.25,0.000324,2]
[339984508,1728273043148,-105.33938664,0.000324,2]
[339984510,1728273043158,-430.0,0.000324,17]
[339984512,1728273043167,-261.0,0.000324,17]
[339984514,1728273043176,-151.0,0.000324,7]
[339984516,1728273043186,-161.137031,0.000324,7]
[339984518,1728273043195,-161.137031,0.000324,7]
[339984520,1728273043204,-1244.76885694,0.00032405,2]
[339984522,1728273043213,-1000.0,0.00032406,2]
[339984523,1728273043222,-1646.77769442,0.00032406,2]
[339984526,1728273043235,-3004.950001,0.00032406,2]
[339984669,1728273045484,-500.0,0.00031973,2]
[339984670,1728273045493,-942.28,0.00032,2]
[339984671,1728273045503,-31142.42715599,0.00032406,2]
[339984672,1728273045637,-3390.86373721,0.00032406,2]
[339984673,1728273045679,-383.44576437,0.00032406,2]
[339984674,1728273045696,-369.68772084,0.00032406,2]
[339984676,1728273066164,150.44,0.00010959,2]
[339984677,1728273276458,350.0,0.00015001,2]
[339984678,1728274161416,500.0,0.00015001,2]
[339984679,1728274161757,500.0,0.00015001,2]
[339984680,1728274162115,770.0,0.00015001,2]
[339984681,1728274172775,890.0,0.00015,6]
[339984705,1728274231605,-300.0,0.00019725,2]
[339984707,1728274231615,-54.03539845,0.000198,2]
[339984710,1728274231626,-2204.70442374,0.000198,2]
[339984712,1728274231638,-84.03011308,0.000198,2]
[339984714,1728274231649,-712.08550267,0.000199,2]
[339984724,1728274231757,-438.899,0.000199,2]
[339984725,1728274231768,-739.07729733,0.000199,2]
[339984726,1728274231777,-1588.32662175,0.000199,2]
[339984727,1728274231787,-1195.23,0.0002,2]
[339984728,1728274231796,-328.77,0.00028619,2]
[339984729,1728274231805,-250.0,0.0003,30]
[339984730,1728274231814,-7.58608092,0.00030438,2]
[339984731,1728274231825,-2030.54494733,0.00030438,2]
[339984732,1728274231836,-169.94897175,0.00030438,2]
[339984733,1728274231845,-200.0,0.00030446,2]
[339984734,1728274231854,-500.0,0.0003045,2]
[339984735,1728274231863,-414.46078876,0.00030503,2]
[339984736,1728274231874,-405.84115355,0.00030503,2]
[339984737,1728274231885,-179.69805769,0.00030503,2]
[339984738,1728274231894,-111.95194231,0.00030631,120]
[339984739,1728274231912,-48.03805769,0.00030631,120]
[339984740,1728274231921,-250.0,0.00030682,2]
[339984741,1728274231931,-951.7,0.00030682,2]
[339984742,1728274231940,-250.0,0.00030684,2]
[339984743,1728274231949,-311.76377511,0.00030701,2]
[339984744,1728274237828,-843.01622489,0.00030701,2]
[339984745,1728274237837,-644.84,0.00030712,2]
[339984746,1728274237846,-250.0,0.00030729,2]
[339984747,1728274237855,-181.73,0.00030835,2]
[339984748,1728274237864,-772.9508962,0.00030883,2]
[339984749,1728274237873,-328.77,0.00030883,2]
[339984750,1728274237882,-418.91,0.00030897,30]
[339984751,1728274237892,-250.0,0.00031,30]
[339984752,1728274237901,-1013.0,0.00031,3]
[339984753,1728274237910,-1000.0,0.00031,10]
[339984754,1728274237919,-813.0,0.00031,3]
[339984755,1728274237929,-150.0,0.00031,2]
[339984756,1728274237938,-427.61,0.00031241,2]
[339984757,1728274237947,-157.968,0.00031269,28]
[339984758,1728274237956,-165.869,0.00031269,28]
[339984759,1728274237967,-32565.06128643,0.0003127,2]
[339984760,1728274237983,-12432.88205,0.0003127,2]
[339984761,1728274237993,-929.69681128,0.0003127,2]
[339984763,1728274239708,-2451.88373849,0.0003127,2]
[339984764,1728274239720,-54317.0605138,0.0003127,2]
[339984765,1728274239729,-250.0,0.000313,7]
[339984766,1728274239741,-167.0,0.00031403,2]
[339984767,1728274239750,-250.0,0.00031913,2]
[339984768,1728274239759,-200.0,0.00032,120]
[339984769,1728274239769,-250.0,0.00032,14]
[339984770,1728274239778,-300.0,0.00032,120]
[339984771,1728274239788,-299.59,0.00032,7]
[339984772,1728274239797,-913.0,0.000321,2]
[339984773,1728274239806,-860.0,0.00032168,30]